Cogmind - Beta 16.1 @@@ ROGUE MODE // 2026.02.22 @ 22:37:54 Player: Silfurdreki Result: Destroyed by Y-64 Sentinel with KE Penetrator Performance ------------- Evolutions (5) 2500 Regions Visited (7) 1400 Robots Destroyed (49) 245 Value Destroyed (2289) 2289 Prototype IDs (7) 140 Alien Tech Used (0) 0 Bonus (480) 480 TOTAL SCORE: 7054 Bonus ------- High Alert Combat Kills 60 Follower Combat Kills 324 Registered with UFD 300 Met Optimus in HQ 500 Friendly Fire -704 Cogmind --------- Core Integrity 0/1000 Matter 155/300 Energy 98/100 System Corruption 2% Temperature Cool (18) Movement Core (50) Location -5/Upper Caves Parts ------- > --- POWER (2) -------- (None) > --- PROPULSION (5) --- (None) > --- UTILITY (7) ------ (None) > --- WEAPON (3) ------- (None) > --- INVENTORY (5) ---- Reflective Plating Variable Charge Gun Plasma Cannon Enhanced Hardcell Cannon Great Maul Peak State ------------ > --- POWER ------------ Light Angular Momentum Engine Micro Fission Core > --- PROPULSION ------- Carbon-fiber Leg Carbon-fiber Leg Carbon-fiber Leg Flexi-carbon Leg Flexi-carbon Leg > --- UTILITY ---------- Large Storage Unit Advanced Sensor Array Improved Target Analyzer Improved Kinecellerator Enhanced Scrap Shield High-powered Tractor Beam > --- WEAPON ----------- Autogun Heavy Machine Gun Enhanced Hardcell Cannon > --- INVENTORY -------- Improved Deuterium Engine Light Angular Momentum Engine Armored Huge Wheel Structural Scanner Surveybot 17 Chip Advanced Recoil Stabilizer Hardlight Generator Proton Cannon Plasma Cannon Magnetic Acceleration Cannon Bore Cannon Enhanced Hardcell Cannon Great Maul [Rating: 84] Favorites ----------- Power Improved Deuterium Engine Engine Improved Deuterium Engine Power Core Micro Fission Core Reactor Light Antimatter Reactor Propulsion Makeshift Leg Treads Light Treads Leg Makeshift Leg Wheel Armored Huge Wheel Hover Unit Improved Hover Unit Utility Large Storage Unit Device High-powered Tractor Beam Storage Large Storage Unit Processor Target Analyzer Protection Scrap Shield Weapon Magnetic Acceleration Cannon Energy Gun Field Laser Ballistic Gun Subdweller Machine Gun Ballistic Cannon Magnetic Acceleration Cannon Build | -11 -10 -10 -9 -6 -6 -5 -5 ------- Run | Yrd Mat Sub Scr Fac Ext Fac Upp Slots Evolved 10 | . . . . 8 . 2 . Power 1 | . . . . 1 . . . Propulsion 3 | . . . . 2 . 1 . Utility 5 | . . . . 4 . 1 . Weapon 1 | . . . . 1 . . . Parts Attached 86 | 6 1 10 10 5 36 13 5 Power 18 | 1 . 3 2 1 6 5 . Engine 12 | 1 . 3 2 1 5 . . Core 5 | . . . . . 1 4 . Reactor 1 | . . . . . . 1 . Propulsion 26 | 2 . 2 3 1 14 3 1 Treads 8 | . . . . . 8 . . Leg 16 | 2 . 2 3 1 5 3 . Wheel 1 | . . . . . . . 1 Hover 1 | . . . . . 1 . . Flight . | . . . . . . . . Utility 20 | 1 1 2 2 3 5 4 2 Device 8 | . 1 . . 1 3 3 . Storage 2 | 1 . . 1 . . . . Processor 3 | . . . 1 1 . 1 . Hackware . | . . . . . . . . Protection 7 | . . 2 . 1 2 . 2 Artifact . | . . . . . . . . Weapon 22 | 2 . 3 3 . 11 1 2 Energy Gun 2 | . . . . . 2 . . Energy Cannon . | . . . . . . . . Ballistic Gun 12 | 2 . 3 2 . 5 . . Ballistic Cannon 8 | . . . 1 . 4 1 2 Launcher . | . . . . . . . . Special Weapon . | . . . . . . . . Impact Weapon . | . . . . . . . . Slashing Weapon . | . . . . . . . . Piercing Weapon . | . . . . . . . . Special Melee Weapon . | . . . . . . . . Unidentified Prototypes 1 | . . . . . . . 1 Parts Lost 48 | . . 1 . . 25 3 19 Power 7 | . . . . . 3 1 3 Propulsion 17 | . . . . . 10 1 6 Utility 12 | . . 1 . . 4 1 6 Weapon 12 | . . . . . 8 . 4 Highest Loss Streak 11 | . . 1 . . 9 1 11 To Critical Strikes . | . . . . . . . . Average Backups 6 | 3 7 3 4 9 8 13 8 Power . | . 1 . . 1 . 3 . Propulsion 2 | 2 5 2 2 1 1 3 . Utility 1 | . . . . 2 2 2 2 Weapon 2 | . 1 . . 4 3 4 4 Tool/Special . | . . . . . . . . Unused Backups 24 | . . 8 2 . 3 5 6 Power 3 | . . 1 1 . . 1 . Propulsion 10 | . . 6 1 . 1 2 . Utility 3 | . . . . . . 1 2 Weapon 8 | . . 1 . . 2 1 4 Tool/Special . | . . . . . . . . Average Slot Usage (%) 83 | . 98 84 87 91 80 97 40 Engine 10 | . 14 14 14 13 10 1 2 Core 1 | . . . . . . 8 1 Treads 2 | . . . . . 11 . . Leg 22 | . 28 27 27 25 11 28 10 Device 5 | . 12 1 . 5 7 22 6 Storage 4 | . 14 1 5 6 5 5 2 Processor 4 | . . . 2 12 8 5 5 Protection 6 | . . 10 8 5 5 3 1 Energy Gun 1 | . . . . . 4 . . Ballistic Gun 14 | . 28 28 15 12 8 11 3 Ballistic Cannon 6 | . . . 12 6 4 5 3 Peak Build Rating 84 | 6 9 18 28 53 55 76 84 Average Rating 30 | 4 8 11 21 52 38 65 37 On Entrance 29 | . 6 9 18 27 53 53 70 Avg Prop Armor Cover (%) 3 | . . . 7 3 5 . 6 Naked Turns 4 | . . . . . . . 4 Heaviest Build 76 | 12 14 31 42 64 64 70 76 Greatest Support 92 | 20 20 40 40 70 92 80 85 Greatest Overweight (x) 13 | 3 . 9 2 1 4 1 13 Average Overweight (x) . | . . . . . . . . Largest Inventory Capacity 15 | 8 8 8 15 15 15 15 15 Average Capacity 10 | 7 8 5 9 15 13 15 9 Most Carried 15 | 6 8 8 15 14 15 15 15 Average Carried 8 | 3 7 5 6 9 8 14 8 Final Capacity 15 | 8 8 5 15 15 15 15 5 Final Carried 15 | 6 8 5 15 10 15 14 5 Scrap Suit Usage (%) 12 | . . . . 98 40 . . Parts Cannibalized 11 | . . . . 3 8 . . Class Distribution -------------------- 34% | Mutant 27% | Subdweller-Mutant 21% | Scavenger-Gunner 10% | Scavenger-Scrapper Dominant Class ---------------- Mutant | -10/Materials Subdweller-Mutant | -10/Subcaves Mutant | -9/Scraptown Scavenger-Scrapper | -6/Factory Scavenger-Gunner | -6/Extension Scavenger-Gunner | -5/Factory Mutant | -5/Upper Caves Resources | -11 -10 -10 -9 -6 -6 -5 -5 ----------- Run | Yrd Mat Sub Scr Fac Ext Fac Upp Matter Collected 2697 | 236 . 197 100 197 1098 573 296 Remotely 857 | . . . . . 245 513 99 Salvage Created 2234 | . . 160 . 186 1155 575 158 Parts 90 | . . 11 . 12 47 16 4 Haulers Intercepted . | . . . . . . . . Recyclers Shooed 1 | . . . . . . 1 . Parts Field Recycled . | . . . . . . . . Retrieved Matter . | . . . . . . . . Parts Self-Destructed 9 | . . 6 . . . . 3 Prevented . | . . . . . . . . Parts Restored . | . . . . . . . . Kills | -11 -10 -10 -9 -6 -6 -5 -5 ------- Run | Yrd Mat Sub Scr Fac Ext Fac Upp Combat Hostiles Destroyed 42 | . . 5 . 3 21 9 4 Guns 28 | . . 5 . 1 15 4 3 Cannons 11 | . . . . 2 6 2 1 AOE 3 | . . . . . . 3 . Classes Destroyed 12 | . . 2 . 2 6 2 . Builder 2 | . . . . 1 1 . . Recycler 2 | . . . . . 1 1 . Watcher 1 | . . . . . 1 . . Swarmer 4 | . . . . . 4 . . Grunt 19 | . . 2 . 2 5 7 3 Duelist 2 | . . . . . . 1 1 Sentry 6 | . . . . . 6 . . Hunter 2 | . . . . 1 1 . . Programmer 1 | . . . . . . 1 . Behemoth 2 | . . . . . 2 . . Subdweller 3 | . . 3 . . . . . Savage 2 | . . . . . 2 . . Guerrilla 3 | . . . . . 1 2 . Best Kill Streak 4 | . . 2 . 2 4 4 2 Combat Bots Only 3 | . . 2 . 2 3 3 2 Max Kills in Single Turn 5 | . . 1 . 1 2 5 1 Gunslinging 1 | . . . . . 1 . . Exploded 3 | . . . . . . 3 . Melee . | . . . . . . . . Uniques/NPCs Destroyed . | . . . . . . . . Combat | -11 -10 -10 -9 -6 -6 -5 -5 -------- Run | Yrd Mat Sub Scr Fac Ext Fac Upp Hostile Shots Fired 711 | . 1 20 1 25 417 52 195 Missed 204 | . . 3 1 5 127 9 59 Hits 507 | . 1 17 . 20 290 43 136 Melee 1 | . . . . . . . 1 Projectile 506 | . 1 17 . 20 290 43 135 Critical Strikes 10 | . . . . . 3 2 5 Damage Taken 7628 | . 8 282 . 383 3378 830 2747 Core 1335 | . . 26 . . 306 59 944 Absorbed by Shields 160 | . 3 . . . 17 140 . Regen/Repaired (Parts) 93 | . . . . 22 71 . . Core Remaining (%) 84 | 100 . . 89 . 64 . . Volleys Fired 157 | . . 16 . 13 73 27 28 Largest 3 | . . 2 . 3 3 3 3 Hottest 187 | . . 60 . 100 187 111 136 Shots Fired 401 | . . 32 . 39 187 81 62 Gun 257 | . . 32 . 26 123 54 22 Cannon 144 | . . . . 13 64 27 40 Launcher . | . . . . . . . . Special . | . . . . . . . . Kinetic 357 | . . 32 . 39 143 81 62 Thermal 44 | . . . . . 44 . . Explosive . | . . . . . . . . Electromagnetic . | . . . . . . . . Robot Hit Streak 23 | . . 15 . 6 23 7 5 Robot Miss Streak 8 | . . 1 . 5 6 8 5 Penetration Max 1 | . . . . 1 . . . Secondary Targets 1 | . . . . . 1 . . Max Gunslinging Chain 1 | . . . . . 1 . . Shots Hit Robots 238 | . . 28 . 21 121 36 32 Core Hits 100 | . . 8 . 10 57 17 8 Critical Kills 4 | . . . . . 3 1 . Critical Parts Destroyed 5 | . . . . 1 . 1 3 Critical Strikes 20 | . . . . 1 9 2 8 Burn 1 | . . . . . 1 . . Destroy 11 | . . . . 1 3 2 5 Blast 8 | . . . . . 5 . 3 Melee Attacks . | . . . . . . . . Impact . | . . . . . . . . Slashing . | . . . . . . . . Piercing . | . . . . . . . . Sneak Attacks . | . . . . . . . . Combat Hostiles . | . . . . . . . . Follow-up Attacks . | . . . . . . . . Damage Inflicted 7205 | . . 549 . 476 2911 2067 1202 Guns 3449 | . . 549 . 293 1668 700 239 Cannons 2743 | . . . . 119 1230 431 963 Explosions 920 | . . . . . . 920 . Melee . | . . . . . . . . Ramming 93 | . . . . 64 13 16 . Kinetic 5603 | . . 549 . 412 2309 1131 1202 Thermal 1509 | . . . . . 589 920 . Explosive . | . . . . . . . . Electromagnetic . | . . . . . . . . Impact . | . . . . . . . . Slashing . | . . . . . . . . Piercing . | . . . . . . . . Highest Corruption 2 | . . . . . 2 2 2 Average Corruption 1 | . . . . . 1 2 2 Corruption Purged . | . . . . . . . . Corruption Blocked . | . . . . . . . . Effects 21 | . . . . . 14 1 6 Message Errors 8 | . . . . . 5 . 3 Matter Fused 3 | . . . . . 2 . 1 Heat Flow Errors 1 | . . . . . 1 . . Energy Discharges 2 | . . . . . 1 1 . Data Loss (minor) 3 | . . . . . 2 . 1 Data Loss (major) 2 | . . . . . 1 . 1 Alerts 1 | . . . . . 1 . . Weapon Failures 1 | . . . . . 1 . . Overload Shots . | . . . . . . . . Overflow Damage 238 | . . . . . 8 170 60 Projectiles 76 | . . . . . 8 8 60 Explosions 162 | . . . . . . 162 . Melee . | . . . . . . . . Knockbacks 13 | . . . . . 4 4 5 Impact . | . . . . . . . . Kinetic 10 | . . . . . 4 4 2 Secondary 3 | . . . . . . . 3 Self-Inflicted Damage 77 | . . . . . . 77 . Shots 2 | . . . . . . 2 . Rammed 2 | . . . . . 2 . . Targets Rammed 10 | . . . . 5 4 1 . Kicked 8 | . . . . 5 2 1 . Crushed . | . . . . . . . . Highest Temperature 581 | . . . . 342 462 471 581 Average Temperature 175 | . . . . 130 158 194 246 Received Heat Transfer 1967 | . 4 96 . 27 660 248 932 Effects 34 | . . . . 2 15 8 9 Shutdowns 10 | . . . . 1 4 4 1 Energy Bleed 6 | . . . . . 4 1 1 Interference 5 | . . . . . 2 . 3 Matter Decay 3 | . . . . 1 1 1 . Short Circuit 2 | . . . . . 1 . 1 Damage (minor) 4 | . . . . . 3 1 . Damage (major) 3 | . . . . . . 1 2 Damage (core) 1 | . . . . . . . 1 Siege Activations . | . . . . . . . . Martial Activations . | . . . . . . . . Shielding Activations . | . . . . . . . . Robots Disrupted . | . . . . . . . . Combat Hostiles . | . . . . . . . . Robots Corrupted . | . . . . . . . . Combat Hostiles . | . . . . . . . . Parts Fried . | . . . . . . . . Impact Corruptions . | . . . . . . . . Robots Melted . | . . . . . . . . Combat Hostiles . | . . . . . . . . Parts Melted 2 | . . 1 . . 1 . . Heat Transferred 1877 | . . . . . 1327 550 . Parts Sabotaged . | . . . . . . . . Parts Stolen . | . . . . . . . . Parts Stripped . | . . . . . . . . Power Chain Reactions . | . . . . . . . . Alert | -11 -10 -10 -9 -6 -6 -5 -5 ------- Run | Yrd Mat Sub Scr Fac Ext Fac Upp Maximum Alert Level 2 | . . . . . . 2 . Low Security (%) 91 | 100 100 . . 100 100 63 . Level 1 3 | . . . . . . 13 . Level 2 5 | . . . . . . 23 . Level 3 . | . . . . . . . . Level 4 . | . . . . . . . . Level 5 . | . . . . . . . . High Security . | . . . . . . . . Max Security . | . . . . . . . . Peak Influence 658 | . . . . 64 92 658 . Initial 30 | . . . . . 25 30 . Average 68 | . . . . 15 22 225 . Influence Increases 1939 | . . 50 . 107 664 908 210 Destroy 0b10 Robot/C 940 | . . 40 . 60 500 260 80 Destroy 0b10 Robot/NC 45 | . . . . 5 25 15 . Destroy Leader 138 | . . 10 . 20 56 42 10 Allied During Kill 37 | . . . . . 19 18 . Successful Hack 5 | . . . . . 5 . . Disable Machine 180 | . . . . . . 180 . Anti-Garrison Action 200 | . . . . . . 200 . Destroy Structure 199 | . . . . 7 14 178 . Partial Spotted 15 | . . . . . 15 . . Lose Combat Pursuer 180 | . . . . 15 30 15 120 Influence Decreases 1802 | . . 50 . 53 655 343 701 Entered New Map 295 | . . . . . 29 33 233 Time Decay 1023 | . . 50 . 53 382 260 278 Lost Part 360 | . . . . . 140 30 190 Lost Ally 32 | . . . . . 12 20 . Purge Threat 92 | . . . . . 92 . . Squads Dispatched 9 | . . . . 2 3 4 . Investigation 4 | . . . . . 2 2 . Extermination 1 | . . . . . . 1 . Reinforcement 3 | . . . . 2 1 . . Assault 1 | . . . . . . 1 . Garrison . | . . . . . . . . Intercept . | . . . . . . . . Searches Triggered . | . . . . . . . . Construction Impeded 2 | . . . . 1 1 . . Haulers Reinforced . | . . . . . . . . Active Scanning Responses . | . . . . . . . . Cargo Convoy Interrupts . | . . . . . . . . Stealth | -11 -10 -10 -9 -6 -6 -5 -5 --------- Run | Yrd Mat Sub Scr Fac Ext Fac Upp Distress Signals 4 | . . . . . 1 3 . Communications Jammed . | . . . . . . . . Distress Signals . | . . . . . . . . Times Spotted 95 | . 1 6 9 7 29 21 22 Peak Tracking Total 11 | . 1 2 3 3 5 7 11 Tactical Retreats 7 | . . . . 1 2 1 3 Traps | -11 -10 -10 -9 -6 -6 -5 -5 ------- Run | Yrd Mat Sub Scr Fac Ext Fac Upp Traps Triggered 4 | . . . . . 2 2 . Indirectly . | . . . . . . . . Trap Hack Attempts . | . . . . . . . . Triggered . | . . . . . . . . Disarmed . | . . . . . . . . Reprogrammed . | . . . . . . . . Reused . | . . . . . . . . Traps Extracted . | . . . . . . . . Installed . | . . . . . . . . Triggered . | . . . . . . . . Machines | -11 -10 -10 -9 -6 -6 -5 -5 ---------- Run | Yrd Mat Sub Scr Fac Ext Fac Upp Machines Disabled 14 | . . . . . 2 12 . Max in Single Turn 4 | . . . . . 1 4 . Garrison Access 1 | . . . . . . 1 . Machines Repaired . | . . . . . . . . Machines Dismantled . | . . . . . . . . Machines Sabotaged . | . . . . . . . . Overloaded Fab Kills . | . . . . . . . . Hacking | -11 -10 -10 -9 -6 -6 -5 -5 --------- Run | Yrd Mat Sub Scr Fac Ext Fac Upp Machines Accessed 22 | . . 1 8 . 9 4 . Terminals 9 | . . . . . 9 . . Fabricators 2 | . . . . . . 2 . Repair Stations . | . . . . . . . . Recycling Units 1 | . . . . . . 1 . Scanalyzers . | . . . . . . . . Garrison Access 1 | . . . . . . 1 . Total Hacks 69 | . . 3 40 . 18 8 . Successful 53 | . . 3 40 . 6 4 . Failed 16 | . . . . . 12 4 . Catastrophic 4 | . . . . . 3 1 . Database Lockouts . | . . . . . . . . Manual 11 | . . . . 1 3 7 . Terminals 18 | . . . . . 18 . . Fabricators 5 | . . . . . . 5 . Repair Stations . | . . . . . . . . Recycling Units 1 | . . . . . . 1 . Scanalyzers . | . . . . . . . . Garrison Access 2 | . . . . . . 2 . Terminal Hacks 48 | . . 3 40 . 5 . . Record 38 | . . 3 35 . . . . Robot Analysis 4 | . . . 4 . . . . Open Door 3 | . . . . . 3 . . Alert Level 1 | . . . . . 1 . . Unreport Threat 1 | . . . . . 1 . . Proto ID Catalog 1 | . . . 1 . . . . Fabricator Hacks 1 | . . . . . . 1 . Build 1 | . . . . . . 1 . Repair Station Hacks . | . . . . . . . . Recycling Unit Hacks . | . . . . . . . . Scanalyzer . | . . . . . . . . Garrison Access Hacks . | . . . . . . . . Unauthorized Hacks 4 | . . . . . 1 3 . Terminals 1 | . . . . . 1 . . Botnet 1 | . . . . . 1 . . Fabricators 1 | . . . . . . 1 . Haulers 1 | . . . . . . 1 . Repair Stations . | . . . . . . . . Recycling Units 1 | . . . . . . 1 . Fedlink 1 | . . . . . . 1 . Scanalyzers . | . . . . . . . . Garrison Access 1 | . . . . . . 1 . Jam 1 | . . . . . . 1 . Data Cores Recovered . | . . . . . . . . Used . | . . . . . . . . Hacking Detections 9 | . . . . . 7 2 . Full Trace Events 2 | . . . . . 2 . . Feedback Events . | . . . . . . . . Feedback Blocked . | . . . . . . . . Robot Schematics Acquired . | . . . . . . . . Robots Built . | . . . . . . . . Authchips . | . . . . . . . . Time . | . . . . . . . . Total Robot Build Rating . | . . . . . . . . Part Schematics Acquired . | . . . . . . . . Parts Built 2 | . . . . . . 2 . Authchips . | . . . . . . . . Time 139 | . . . . . . 139 . Total Part Build Rating 18 | . . . . . . 18 . Part Studies Acquired . | . . . . . . . . Parts Repaired . | . . . . . . . . Time . | . . . . . . . . Parts Recycled . | . . . . . . . . Recycled Matter . | . . . . . . . . Retrieved Matter . | . . . . . . . . Retrieved Components . | . . . . . . . . Parts Scanalyzed . | . . . . . . . . Part Schematics Acquired . | . . . . . . . . Parts Damaged . | . . . . . . . . Bothacking | -11 -10 -10 -9 -6 -6 -5 -5 ------------ Run | Yrd Mat Sub Scr Fac Ext Fac Upp Used RIF Installer . | . . . . . . . . Robots Hacked . | . . . . . . . . Non-combat . | . . . . . . . . Combat . | . . . . . . . . Robot Hacks Applied . | . . . . . . . . Relay Couplers Released . | . . . . . . . . Fabnet Peak Effective % . | . . . . . . . . Robots Rewired . | . . . . . . . . Allies Hacked . | . . . . . . . . Hacks Repelled . | . . . . . . . . Allies | -11 -10 -10 -9 -6 -6 -5 -5 -------- Run | Yrd Mat Sub Scr Fac Ext Fac Upp Total Allies 5 | . . . . . 4 . 1 Largest Group 3 | . . . . . 3 3 1 Highest-Rated Group 237 | . . . . . 237 237 138 Highest-Rated Ally 159 | . . . . . 159 159 138 Initial UFD Resources 36 | . . . . 22 22 26 36 Total Orders . | . . . . . . . . Ally Attacks 61 | . . . . . 19 42 . Total Damage 1203 | . . . . . 675 528 . Kills 12 | . . . . . 6 6 . Allies Corrupted . | . . . . . . . . Allies Melted 1 | . . . 1 . . . . Intel | -11 -10 -10 -9 -6 -6 -5 -5 ------- Run | Yrd Mat Sub Scr Fac Ext Fac Upp Active Infowar (turns) 3154 | . . . 588 255 1257 733 321 Optics 1564 | . . . 588 255 721 . . Sensors 943 | . . . . . . 666 277 IFF 191 | . . . . . 26 165 . Structural 645 | . . . . . 536 65 44 Robot Analysis Total 4 | . . . 4 . . . . Derelict Logs Recovered 4 | . . 1 2 . . . 1 Drone Launches . | . . . . . . . . Drone Recoveries . | . . . . . . . . Exploration | -11 -10 -10 -9 -6 -6 -5 -5 ------------- Run | Yrd Mat Sub Scr Fac Ext Fac Upp Turns Passed 7728 | 75 206 1048 3011 255 1793 733 607 Spaces Moved 5185 | 47 132 581 2110 136 1091 371 717 Core 684 | 15 . 2 . . 72 . 595 Treads 414 | . . . . . 414 . . Legs 4043 | 32 132 579 2110 136 561 371 122 Wheels . | . . . . . . . . Hover 44 | . . . . . 44 . . Flight . | . . . . . . . . Fastest Speed 50 | 50 120 120 140 105 50 120 50 Average Speed 128 | 130 120 162 140 137 126 123 70 Slowest Speed 700 | 200 120 500 240 176 400 190 700 Overloaded Moves . | . . . . . . . . Propulsion Burnouts . | . . . . . . . . Robots Hopped . | . . . . . . . . Potential Cave-ins . | . . . . . . . . Cave-ins Triggered . | . . . . . . . . Exploration Rate (%) 37 | 3 9 26 94 5 87 10 69 Regions Visited 7 Branch Regions 4 Pre-discovered Areas . | . . . . . . . . Known Exits Taken . | . . . . . . . . Unknown Exits Taken 7 | 1 1 1 1 1 1 1 . Scrap Searched 11 | . . 5 5 . . . 1 Spaces Dug . | . . . . . . . . Terrain Destroyed 95 | . . . . 7 10 58 20 Melee . | . . . . . . . . Projectile 53 | . . . . 7 10 16 20 AOE 42 | . . . . . . 42 . Terrain Rammed . | . . . . . . . . Walls Destroyed . | . . . . . . . . Machines Disabled . | . . . . . . . . Actions | -11 -10 -10 -9 -6 -6 -5 -5 --------- Run | Yrd Mat Sub Scr Fac Ext Fac Upp Total 5954 | 58 179 660 2157 174 1355 603 768 Wait 362 | . 45 29 11 11 100 162 4 Move 5178 | 46 131 580 2109 135 1090 370 717 Hop . | . . . . . . . . Pick Up 65 | 6 2 8 15 3 20 10 1 Fast Attach 38 | 6 1 6 4 . 18 1 2 Attach 44 | . . 2 2 7 20 5 8 Detach 14 | . . 1 . . 7 2 4 Swap 19 | . . 2 4 . 5 8 . Drop 61 | . . 16 12 . 12 17 4 Fire 157 | . . 16 . 13 73 27 28 Melee . | . . . . . . . . Ram . | . . . . . . . . Kick 8 | . . . . 5 2 1 . Crush 2 | . . . . . 2 . . Escape Stasis 5 | . . . . . 5 . . Rewire 1 | . . . . . 1 . . Trap . | . . . . . . . . Miscellaneous . | . . . . . . . . Route ------- -11/Scrapyard -10/Materials (discovered 2 exits: [*Min] / *Sub) -10/Subcaves (discovered 3 exits: [*Mat x2] / *Scr) -9/Scraptown (discovered 2 exits: *Fac x2) -6/Factory -6/Extension (discovered 2 exits: *Fac / [*Cet]) -5/Factory -5/Upper Caves History --------- Turn | Location | Event 9 | -11/Scrapyard | Discovered new exit (range 15) 76 | -11/Scrapyard | Entered Materials 77 | -10/Materials | Met a group of wandering Federalists 148 | -10/Materials | Discovered new exit (range 5) 179 | -10/Materials | Discovered new exit (range 3) 282 | -10/Materials | Entered Subcaves 283 | -10/Subcaves | Continued accompanying wandering Federalists (6) 315 | -10/Subcaves | Build established: Mutant 381 | -10/Subcaves | Shifting Twisted Machinery released Scrap Shield 383 | -10/Subcaves | Discovered new exit (range 12) 384 | -10/Subcaves | Shifting Twisted Machinery released Scrap Shield 788 | -10/Subcaves | Build established: Subdweller-Mutant 869 | -10/Subcaves | Visited Clippyterm 874 | -10/Subcaves | Learned Factory emergency access door positions 1066 | -10/Subcaves | Learned Materials security intel 1214 | -10/Subcaves | Discovered new exit (range 6) 1330 | -10/Subcaves | Entered Scraptown 1902 | -9/Scraptown | Discovered new exit (range 5) 1947 | -9/Scraptown | Scanned Subdweller tech in exchange for log data 1949 | -9/Scraptown | Learned Factory security intel 1951 | -9/Scraptown | Learned Research emergency access door positions 2003 | -9/Scraptown | Visited Shadow of the Wyrm 2035 | -9/Scraptown | Visited Assassins FH 2077 | -9/Scraptown | Visited Cave Peace 2372 | -9/Scraptown | Visited Awakened 2412 | -9/Scraptown | Visited CPS Storage 2487 | -9/Scraptown | Visited SPCMW 2722 | -9/Scraptown | Visited Bundlers 2788 | -9/Scraptown | Visited UFD Registry 2864 | -9/Scraptown | Registered with UFD as "Megasink" 2893 | -9/Scraptown | Visited Scrap Suit Storage 2949 | -9/Scraptown | Visited Observation Area 3007 | -9/Scraptown | Visited LU-1G1's Boring Crew 3040 | -9/Scraptown | Build established: Mutant 3091 | -9/Scraptown | Delivered Scrap Shield to a Scientist 3334 | -9/Scraptown | Visited Research Penetration Think Tank 3365 | -9/Scraptown | Visited Analyses Database 3396 | -9/Scraptown | Visited DA-N13 Charitable Foundation 3404 | -9/Scraptown | Found DCF Scrap (28 items) 3481 | -9/Scraptown | Visited Junk Repository 3537 | -9/Scraptown | Visited Chapter 10 3604 | -9/Scraptown | Discovered new exit (range 3) 3732 | -9/Scraptown | Visited Science Guys 3789 | -9/Scraptown | Visited Cartography Club 3833 | -9/Scraptown | Found Surveybot 17 Chip 4018 | -9/Scraptown | Met Optimus 4018 | -9/Scraptown | Accepted into 0bPrime 4165 | -9/Scraptown | Found Scrap Suit 4213 | -9/Scraptown | Civil war broke out across Scraptown 4313 | -9/Scraptown | Lost 8 allies 4341 | -9/Scraptown | Entered Factory 4341 | -6/Factory | Evolved 8 slots: Power x1, Propulsion x2, Utility x4, Weapon x1 4581 | -6/Factory | Discovered new exit (range 15) 4596 | -6/Factory | Entered Extension 4634 | -6/Extension | Build established: Scavenger-Scrapper 4679 | -6/Extension | Spotted B-75 Beast 4901 | -6/Extension | Rescued a captive Derelict 5224 | -6/Extension | Lost 8 parts (2p3n3w) 5291 | -6/Extension | Destroyed B-75 Beast 5311 | -6/Extension | Spotted B-75 Beast 5333 | -6/Extension | Destroyed B-75 Beast 5358 | -6/Extension | Lost 9 parts (1p2n3u3w) 5823 | -6/Extension | Lost 5 parts (2n1u2w) 5878 | -6/Extension | Rescued A7 6125 | -6/Extension | Build established: Scavenger-Gunner 6280 | -6/Extension | Rescued a captive Derelict 6282 | -6/Extension | Rescued a captive Derelict 6347 | -6/Extension | Discovered new exit (range 10) 6349 | -6/Extension | Discovered new exit (range 6) 6389 | -6/Extension | Entered Factory 6389 | -5/Factory | Accompanied by 3 allies (A7) 6389 | -5/Factory | Evolved 2 slots: Propulsion x1, Utility x1 6751 | -5/Factory | Loaded intel: 8 recycling unit locations 6989 | -5/Factory | Fabricated Enh. Hardcell Cannon (x2) 6989 | -5/Factory | First assault squad dispatched 7081 | -5/Factory | Discovered new exit (range 14) 7122 | -5/Factory | Entered Upper Caves 7124 | -5/Upper Caves | UFD Scientist delivered a prototype 7131 | -5/Upper Caves | Found Prototype Protection 7131 | -5/Upper Caves | Identified Enh. Scrap Shield 7243 | -5/Upper Caves | Spotted B-75 Beast 7342 | -5/Upper Caves | Lost 6 parts (2n3u1w) 7430 | -5/Upper Caves | Lost 11 parts (3p4n1u3w) 7508 | -5/Upper Caves | Core integrity fell below 50% 7655 | -5/Upper Caves | Learned 8 Factory zone layouts 7668 | -5/Upper Caves | Build established: Mutant 7712 | -5/Upper Caves | Core integrity fell below 20% 7724 | -5/Upper Caves | Attracted the attention of an 0b10 checkpoint 7729 | -5/Upper Caves | Destroyed by Y-64 Sentinel with KE Penetrator Last Messages --------------- 07640_ Found 53 Matter. 07641_ Acquired Reflective Plating. 07642_ Acquired 53 matter. 07647_ Dropped Hardlight Generator. 07647_ Acquired Variable Charge Gun. 07655_ Acquired derelict log, extracted data. Data stored: Factory zone layouts (x8). 07678_ YWFZ1|CAAH WCPPG1DXP U4#Z 07687_ Structural Scanner destroyed. A strange signal echoes through the caves. 07711_ C-30 ARC bursts open, deploying its payload. 07711_ B-60 Warrior unfolds itself. 07711_ G-50 Soldier unfolds itself. 07716_ System corrupted: Substantial component data lost. 07723_ Penetrated by Slug. 07724_ Y-64 Sentinel: "INTERCEPTING UNREGISTERED DERELICT." 07725_ Broken Imp. Target Analyzer destroyed. 07726_ Slug penetrates G-50 Soldier. 07727_ G-50 Soldier destroyed. 07727_ Acquired 63 matter. Map ----- +----------------------------------------------------+ | ???????????????????????????????????????# | | ???????????????????????????????????????# | | ???????????????????????????????????????## #### | | ????????????????????????????????????????# ###? | | ????????????????????????????????????????# #? | | ????????????????????????????????????????## #? | | ?????????????????????????????????????????# ## | | ?????????????????????????????????????????# # | | ?????????????????????????????????????????# | | ?????????????????????????????????????????# | | ???????????????????????????????????# ##### | | ?????????????????????????????##????# | | ????????????????????????????# ??# | | ???????????????????????????? ?###### ### | | ??????????????????????????## ???????# ##?# | | ?????????????????????????## ????????# ### | | ?????????????????????????# ????????## ## | | ??????????????????????#### ??????????## # | | ??????????????????????# #???????????###### | | ???????????????#??????# #????????????????### | | ???????????????# ????# #??######??????????? | | ???????????????# ???# #?? ####?#####?# | | ???????????????# ?#$ Y gg#?? ## ### | | ???????????????# # s #?? " ## | | ????????????????# ##? ? "%" | | ????????????????# @ ## #???# " | | ?????????? $ #?????# | | ?????????? ####! #???????# | | ??????????? ##### #???## #???###### | | ?????????????????## ?????# ##?## ### | | ??????????????????## ??????## ### | | ???????????????????## ??????## | | ????????????????????# ???????# ### | | ???????????????????? ???????# #?## | | ??????????????????? ????????## ### #??# ## | | ??????????????????? ?????????###?######?# ## | | ?????????????????? ?????????????????????# ### | | ????????????????? ?????????????????????## ##?## | | ?????????????????? ???????????????????????####???? | | ?????????????????????????????????????????????????? | | ?????????????????????????????????????????????????? | | ?????????????????????????????????????????????????? | | ?????????????????????????????????????????????????? | | ?????????????????????????????????????????????????? | | ?????????????????????????????????????????????????? | | ?????????????????????????????????????????????????? | | ?????????????????????????????????????????????????? | | ?????????????????????????????????????????????????? | | ?????????????????????????????????????????????????? | | ?????????????????????????????????????????????????? | +----------------------------------------------------+ Best States ------------- Heat Dissipation 40 Energy Generation 31 Energy Capacity 500 Matter Stores 300 Matter Capacity 300 Sight Range 18 Robot Scan Range 16 Terrain Scan Density 10 Armor Coverage 800 Evasion (%) 55 Target Analysis 6 Recoil Reduction 4 Kinecelleration 40 Item Schematics ----------------- None Robot Schematics ------------------ None Fabricated ------------ Enh. Hardcell Cannon | x2 | -5/Factory | Preloaded Repaired ---------- Nothing Studied --------- None Alien Tech Used ----------------- None Achievements -------------- Civilization 2243 Fancy Inventory I Have A Map? Link The Feds Loot Taster Strength In Numbers Uncivil War Well Done Challenges ------------ None Game ------ Seed CompactProtonCompanion Manual? 0 Play Time 01:27:09 Cumulative 50.3 hours Start 2026.02.22 @ 21:04:54 End 2026.02.22 @ 22:37:54 Sessions 1 Manual Loads 0 Difficulty Rogue Special Mode None Game No. 78 Rogue 78 Adventurer 0 Explorer 0 Win Type - Total 1 Types 1/0/0/0/0/0/0/0/0/0 Lore% 45 Gallery% 35 Achievement% 24 Wizard Run 0 Options --------- Layout 0 ASCII 0 Keyboard 1 Movement Numpad Keybinds 0 Fullscreen 1 Font 24/Smallcaps Map View 76x50 Zoom Use 0% Tactical HUD 1 Map Filters NONE Filters NONE Steam 1 RUN: 7c7229a5-0667-4cb9-94b4-10231ac0cd16